[Event "German Rapid Championship 2022"]
[Site "Goettingen"]
[Date "2022.09.24"]
[Round "3.1"]
[White "Krastev, Alexander"]
[Black "Svane, Rasmus"]
[Result "1/2-1/2"]
[ECO "B12"]
[WhiteElo "2431"]
[BlackElo "2615"]
[Annotator "TA"]
[PlyCount "63"]
[EventDate "2022.09.24"]
[EventType "swiss"]
[EventCountry "GER"]
[SourceTitle "playchess.com"]
[Source "ChessBase"]
[SourceQuality "1"]
[TimeControl "900+10"]

{[%evp 10,63,22,9,13,7,13,23,7,19,11,7,28,0,0,0,0,0,12,-4,0,0,0,0,0,-24,-19,-30,-8,-14,-6,-79,-14,-114,-134,-132,-74,-178,-10,-10,0,0,0,0,0,0,0,0,0,0,0,0,0,0,0,0]} 1. e4 {[%emt 0:00:02]} c6 {[%emt 0:00:02]} 2. d4 {[%emt 0:00:03]} d5 {[%emt 0:00:01]} 3. e5 {[%emt 0:00:01]} Bf5 {[%emt 0:00:03]} 4. Nd2 {[%emt 0:00:01]} e6 {[%emt 0:00:03]} 5. Nb3 {[%emt 0:00:02]} Nd7 {[%emt 0:00:14]} 6. Nf3 {[%emt 0:00:02]} Be4 {[%emt 0:01:17] B12: Caro-Kann: Advance Variation.} 7. Be2 {[%emt 0:00:33]} c5 {[%emt 0:00:09]} 8. c3 {[%emt 0:00:16]} cxd4 {[%emt 0:01:00] White has an edge.} 9. cxd4 {[%emt 0:00:03]} Bb4+ {[%emt 0:01:04]} 10. Bd2 {[%emt 0:01:10]} Bxd2+ {[%emt 0:00:03]} 11. Qxd2 {[%emt 0:00:19]} Ne7 {[%emt 0:00:29]} 12. O-O {[%emt 0:00:03] [#]} O-O $146 {[%emt 0:00:07]} ({Predecessor:} 12... h6 13. Ne1 Nc6 14. Bd3 Bxd3 15. Nxd3 O-O 16. f4 a5 17. Rac1 Qb6 18. Qe3 a4 {½-½ (24) Fedorov,A (2532)-Petrosyan,M (2611) Cheliabinsk 2021}) 13. Ng5 {[%emt 0:00:48]} Bg6 {[%emt 0:00:16]} 14. f4 {[%emt 0:00:04]} h6 {[%emt 0:00:47]} 15. Nf3 {[%emt 0:00:01]} Rc8 {[%emt 0:00:11]} 16. Rac1 {[%emt 0:01:57] Against Rc2} Qb6 {[%emt 0:00:56]} 17. Rc3 {[%emt 0:00:39]} Rxc3 {[%emt 0:00:52]} 18. bxc3 {[%emt 0:00:01]} Rc8 {[%emt 0:00:14]} 19. Nh4 {[%emt 0:02:35]} Be4 {[%emt 0:00:34]} 20. g4 {[%emt 0:00:02]} (20. Qb2 $11 {keeps the balance.}) 20... Qc7 {[%emt 0:03:53]} (20... a5 $17 {Threatens to win with ...a4.} 21. Qe3 a4) 21. f5 {[%emt 0:02:02]} (21. Rc1 $11) 21... Qxc3 $17 {[%emt 0:00:36]} 22. Qf4 {[%emt 0:00:01]} Rf8 {[%emt 0:01:30]} (22... Qh3 $142 23. Qg3 (23. fxe6 $2 fxe6 24. Qg3 Qxg3+ 25. hxg3 Rc2 $19) 23... Qxg3+ 24. hxg3 Rc2 25. fxe6 fxe6) 23. Bf3 {[%emt 0:04:32] [#]} (23. Bb5 $17 {was called for.} Nc6 24. Nf3) 23... g5 $2 {[%emt 0:01:50]} ({Better is} 23... Bc2 $1 $19 {[%cal Rc2b3]} 24. Rc1 g5 25. fxg6 fxg6) 24. fxg6 $1 $11 {[%emt 0:00:01] The position is equal.} fxg6 {[%emt 0:00:11]} 25. Qxh6 {[%emt 0:00:03]} Rxf3 {[%emt 0:01:13]} 26. Nxf3 {[%emt 0:00:21]} Bxf3 {[%emt 0:00:01]} 27. Qf4 {[%emt 0:02:53]} Be4 {[%emt 0:00:02]} 28. Qf7+ {[%emt 0:00:56]} Kh8 {[%emt 0:00:01][%cal Oc3h3] [#] ...Qh3! is the strong threat.} 29. Qxe7 {[%emt 0:00:12] Really sharp!} Qe3+ {[%emt 0:00:04]} 30. Rf2 {[%emt 0:00:01]} Qe1+ {[%emt 0:00:08]} 31. Rf1 {[%emt 0:00:01]} Qe3+ {[%emt 0:00:03]} 32. Rf2 {[%emt 0:00:00] Weighted Error Value: White=0.20 (precise) /Black=0.21 (precise)} 1/2-1/2

[Event "German Rapid Championship 2022"]
[Site "Goettingen"]
[Date "2022.09.24"]
[Round "3.2"]
[White "Muckle, Julius"]
[Black "Bluebaum, Matthias"]
[Result "0-1"]
[ECO "D38"]
[WhiteElo "2401"]
[BlackElo "2647"]
[Annotator "TA"]
[PlyCount "57"]
[EventDate "2022.09.24"]
[EventType "swiss"]
[EventCountry "GER"]
[SourceTitle "playchess.com"]
[Source "ChessBase"]
[SourceQuality "1"]
[TimeControl "900+10"]

{[%evp 13,57,11,15,-24,14,15,14,12,0,0,0,15,14,0,51,-16,-9,-40,-55,-43,-43,-54,-17,-22,-19,-22,-18,-110,-110,-156,0,-73,0,-14,0,-417,-400,-472,-64,-37,-10,-6905,-5895,-29984,-29978,-2118]} 1. d4 {[%emt 0:00:01]} Nf6 {[%emt 0:00:03]} 2. c4 {[%emt 0:00:01]} e6 {[%emt 0:00:01]} 3. Nf3 {[%emt 0:00:00]} d5 {[%emt 0:00:01]} 4. Nc3 {[%emt 0:00:01]} Bb4 {[%emt 0:00:02]} 5. Qa4+ {[%emt 0:00:01]} Nc6 {[%emt 0:00:01]} 6. a3 {[%emt 0:00:01]} Bxc3+ {[%emt 0:00:09]} 7. bxc3 {[%emt 0:00:01]} Bd7 {[%emt 0:00:00][%cal Oc6d4]} 8. Qc2 {[%emt 0:00:24] D38: Queen's Gambit Declined: Ragozin Defence (4 Nf3 Bb4).} Na5 {[%emt 0:00:04]} 9. cxd5 {[%emt 0:00:27]} exd5 {[%emt 0:00:02]} 10. Bg5 {[%emt 0:00:08] The position is equal.} h6 {[%emt 0:00:06]} 11. Bh4 {[%emt 0:01:01]} Rc8 {[%emt 0:00:11] [#]} 12. Ne5 $146 {[%emt 0:02:37]} ({Predecessor:} 12. e3 c5 13. dxc5 Rxc5 14. Bd3 Qe7 15. O-O O-O 16. Bh7+ Kh8 17. Bf5 Bxf5 18. Qxf5 {½-½ (46) Atalik,S (2474)-Omorjan,D (2339) Novi Sad 2022}) 12... g5 {[%emt 0:02:27]} 13. Bg3 {[%emt 0:00:20]} Ne4 {[%emt 0:00:08]} ({Black should play} 13... O-O $11) 14. Nxd7 {[%emt 0:00:30]} (14. e3 $1 $14) 14... Qxd7 $11 {[%emt 0:00:02]} (14... Kxd7 15. e3 $14) 15. Be5 {[%emt 0:00:20]} f6 $36 {[%emt 0:00:41][%mdl 2048] Black has good play.} 16. f3 {[%emt 0:03:50]} fxe5 {[%emt 0:00:06]} 17. fxe4 {[%emt 0:00:01]} c5 {[%emt 0:01:25]} 18. dxe5 {[%emt 0:00:26]} d4 {[%emt 0:00:08] And now ...Nc4 would win.} 19. e3 $1 {[%emt 0:00:23][%cal Oe5e6]} O-O {[%emt 0:02:06][%mdl 1024] Black has compensation.} 20. Qa2+ {[%emt 0:01:51]} (20. Rd1 $11) 20... Kg7 $17 {[%emt 0:01:29] ...d3 is the strong threat. Black is much more active. The white rooks are badly placed.} 21. e6 {[%emt 0:01:22]} (21. Rd1 $142) 21... Qc7 $2 {[%emt 0:01:23]} (21... Qc6 $1 $17 {[%cal Rc6e4]} 22. Qd5 Qb6) 22. Be2 {[%emt 0:00:47]} (22. cxd4 cxd4 23. Qb2 Kg8 $17) (22. Rd1 $11 {keeps the balance.}) 22... d3 {[%emt 0:01:23]} ({Don't play} 22... dxc3 23. O-O-O Rfd8 24. Rhf1 Rxd1+ 25. Rxd1 $16) (22... c4 $17 {Strongly threatening ...d3.} 23. exd4 (23. cxd4 Nb3 $15) 23... Nb3) 23. Bxd3 $11 {[%emt 0:00:26]} c4 {[%emt 0:00:01]} 24. Bc2 {[%emt 0:02:58][%mdl 8192] [#]} (24. Be2 $11 {and White stays safe.}) 24... Qb6 $1 $19 {[%emt 0:02:14][%csl LRe3,LRe6]} 25. O-O-O {[%emt 0:01:00]} Rf2 $2 {[%emt 0:00:02]} ({Black should try} 25... Qxe3+ $19 26. Kb2 (26. Kb1 $2 Rc6 $19) 26... Rc6 27. Rd7+ Kh8) 26. Rd7+ $15 {[%emt 0:00:19]} Kh8 {[%emt 0:00:17] Really sharp!} (26... Kf8 $5 {[%cal Rb6e3]} 27. Qb2 Nb3+ 28. Kb1 Qxe6 $15) 27. Qb1 $2 {[%emt 0:00:02][%mdl 8192] [#]} (27. Qb2 $11 Nb3+ 28. Kb1) 27... Nb3+ $1 $19 {[%emt 0:00:36]} 28. Kd1 {[%emt 0:00:17]} Qxe6 {[%emt 0:00:25]} 29. Ke1 {Weighted Error Value: White=1.04/Black=0.43} 0-1

[Event "German Rapid Championship 2022"]
[Site "Goettingen"]
[Date "2022.09.24"]
[Round "3.3"]
[White "Poetsch, Hagen"]
[Black "Langrock, Hannes"]
[Result "1-0"]
[ECO "B40"]
[WhiteElo "2491"]
[BlackElo "2358"]
[Annotator "TA"]
[PlyCount "51"]
[EventDate "2022.09.24"]
[EventType "swiss"]
[EventCountry "GER"]
[SourceTitle "playchess.com"]
[Source "ChessBase"]
[SourceQuality "1"]
[TimeControl "900+10"]

{[%evp 11,51,24,22,32,28,28,33,26,24,28,33,21,38,44,48,47,35,43,42,29,40,29,52,17,69,93,79,70,118,83,311,294,405,418,412,412,862,460,559,537,623,628]} 1. e4 {[%emt 0:00:02]} c5 {[%emt 0:00:03]} 2. Nf3 {[%emt 0:00:01][%cal Bg1f3,Bf3d4,Bd4b5,Bb5d6][%mdl 32]} e6 {[%emt 0:00:01]} 3. d4 {[%emt 0:00:02]} cxd4 {[%emt 0:00:02]} 4. Nxd4 {[%emt 0:00:02]} Nf6 {[%emt 0:00:03]} 5. Nc3 {[%emt 0:00:01]} Nc6 {[%emt 0:00:03]} 6. Ndb5 {[%emt 0:00:11]} Bc5 {[%emt 0:00:22]} 7. Nd6+ {[%emt 0:00:02] B45: Sicilian Four Knights.} Ke7 $1 {[%emt 0:00:05]} 8. Bf4 {[%emt 0:00:02]} e5 {[%emt 0:00:08]} 9. Nf5+ {[%emt 0:00:02] White is slightly better.} Kf8 {[%emt 0:00:03]} 10. Bg5 {[%emt 0:00:01]} d6 {[%emt 0:00:37]} 11. Ne3 {[%emt 0:01:34]} (11. Bxf6 {feels hotter.} Qxf6 12. Nd5 Qd8 13. c3) 11... h6 {[%emt 0:00:46]} 12. Bxf6 {[%emt 0:00:05]} Qxf6 {[%emt 0:00:02]} 13. Bc4 {[%emt 0:02:18]} g6 {[%emt 0:01:27]} 14. O-O {[%emt 0:00:05]} Kg7 {[%emt 0:00:07] [#]} 15. Na4 $146 {[%emt 0:01:10]} ({Predecessor:} 15. Ncd5 Qd8 16. c3 a6 17. b4 Ba7 18. Qd2 Be6 19. Rad1 Rc8 20. Bb3 Qh4 21. Qd3 {0-1 (44) Siva,M (2310)-Barseghyan,H (2448) Cannes 2020}) 15... Be6 {[%emt 0:01:32]} 16. Bd5 {[%emt 0:01:53]} Rac8 {[%emt 0:01:55]} 17. c3 {[%emt 0:00:41]} a6 {[%emt 0:01:20]} ({Black should play} 17... Bxe3 $11 18. fxe3 Qe7) 18. Nxc5 $14 {[%emt 0:00:30]} dxc5 {[%emt 0:00:02]} 19. Qb3 {[%emt 0:00:15]} Bxd5 {[%emt 0:03:41]} (19... b5 $14) 20. Nxd5 {[%emt 0:00:57]} Qh4 {[%emt 0:00:07] [#] A mistake that costs the game.} (20... Na5 $16 21. Qa4 (21. Nxf6 Nxb3 22. Nh5+ gxh5 $11) 21... Qd8) 21. Qxb7 $18 {[%emt 0:01:02]} Qxe4 {[%emt 0:00:22]} 22. Ne7 {[%emt 0:00:21]} Rb8 {[%emt 0:02:29]} 23. Qxc6 {[%emt 0:00:03]} Qh4 {[%emt 0:00:08]} (23... Qxc6 $142 24. Nxc6 Rxb2 25. Nxe5 Re2) 24. Qd6 {[%emt 0:00:37] White is clearly winning.} Rhe8 {[%emt 0:00:23]} 25. Qxe5+ {[%emt 0:00:59]} Kh7 {[%emt 0:00:03]} 26. Rae1 {[%emt 0:00:24] Weighted Error Value: White=0.39/Black=0.50} 1-0

[Event "German Rapid Championship 2022"]
[Site "Goettingen"]
[Date "2022.09.24"]
[Round "3.4"]
[White "Arndt, Magnus"]
[Black "Lubbe, Nikolas"]
[Result "0-1"]
[ECO "E06"]
[WhiteElo "2384"]
[BlackElo "2479"]
[Annotator "TA"]
[PlyCount "132"]
[EventDate "2022.09.24"]
[EventType "swiss"]
[EventCountry "GER"]
[SourceTitle "playchess.com"]
[Source "ChessBase"]
[SourceQuality "1"]
[TimeControl "900+10"]

{[%evp 13,132,14,42,-2,27,24,35,37,35,6,8,8,60,64,107,47,56,0,52,7,47,-29,-30,-46,-43,-220,-250,-245,-261,-243,-250,-254,-189,-195,-197,-410,-355,-597,-609,-642,-621,-645,-606,-641,-639,-693,-693,-698,-698,-713,-723,-647,-606,-595,-579,-797,-797,-789,-773,-747,-597,-781,-760,-1070,-1047,-1933,-1918,-1732,-1367,-5739,-850,-828,-677,-1927,-1889,-5414,-5150,-5510,-1331,-1259,-930,-919,-803,-1091,-1076,-1011,-1021,-1258,-983,-1350,-1283,-1212,-1212,-1048,-1012,-1981,-1889,-29972,-29974,-29965,-29971,-9104,-6263,-5641,-5477,-5238,-5070,-29975,-29974,-29978,-29979,-29980,-29982,-29984,-29983,-29985,-29986,-29988,-29989,-29989,-29990]} 1. d4 {[%emt 0:00:02]} d5 {[%emt 0:00:02]} 2. c4 {[%emt 0:00:02]} e6 {[%emt 0:00:03]} 3. Nf3 {[%emt 0:00:02]} Nf6 {[%emt 0:00:03]} 4. g3 {[%emt 0:00:01]} Be7 {[%emt 0:00:11]} 5. Bg2 {[%emt 0:00:03]} O-O {[%emt 0:00:03]} 6. O-O {[%emt 0:00:03]} c6 {[%emt 0:00:02]} 7. Nc3 {[%emt 0:00:11]} b6 {[%emt 0:00:58]} 8. Re1 {[%emt 0:00:22] E06: Closed Catalan: Early deviations.} a5 {[%emt 0:00:34]} 9. Ne5 {[%emt 0:03:27]} Nfd7 {[%emt 0:01:18] [#]} 10. Nxd7 $146 {[%emt 0:03:41] White is slightly better.} ({Predecessor:} 10. cxd5 Nxe5 11. dxe5 exd5 12. e4 d4 13. Ne2 c5 14. Nf4 Nc6 15. e6 fxe6 {0-1 (38) Sichinava,Z (2166)-Yankovsky,R (2202) St Petersburg 2007}) 10... Nxd7 {[%emt 0:00:20]} 11. e4 {[%emt 0:00:02][%cal Rc4d5]} dxc4 {[%emt 0:00:26]} 12. e5 $1 {[%emt 0:00:33]} Ba6 {[%emt 0:01:42]} (12... Bb7 $11) 13. Qg4 $14 {[%emt 0:01:23][%mdl 1024] White has compensation.} Re8 {[%emt 0:02:11]} 14. Bh6 {[%emt 0:01:00][%csl Gh6][%cal Rg4g7]} Bf8 {[%emt 0:00:43]} 15. Ne4 {[%emt 0:01:29]} (15. Bxc6 $14 Rc8 16. Bg5) 15... Rc8 {[%emt 0:01:37]} ({Black should play} 15... a4 $11) 16. h4 {[%emt 0:02:24]} (16. Nd6 f5 17. Qg5 (17. exf6 $2 Nxf6 18. Bg5 Bxd6 $19) 17... Re7 $11) 16... Kh8 {[%emt 0:01:37]} 17. Bg5 {[%emt 0:01:53]} ({But not} 17. Nd6 f5 18. Qg5 Re7 19. Qxe7 (19. Nxc8 $2 gxh6 20. Qf4 Qxc8 $19) 19... Qxe7 $17) ({Better is} 17. Bd2 $14 f5 18. exf6 Nxf6 19. Nxf6 Qxf6 20. Bc3) 17... f6 $11 {[%emt 0:01:07]} 18. exf6 {[%emt 0:00:07]} gxf6 {[%emt 0:00:02]} 19. Qf4 $2 {[%emt 0:01:07] Now White is beyond hope.} (19. Re3 $15) 19... fxg5 $19 {[%emt 0:00:58]} 20. Nxg5 {[%emt 0:00:01] [#]} Qf6 {[%emt 0:00:08]} ({Inferior is} 20... Qe7 21. Rxe6 Qxe6 22. Nxe6 Rxe6 23. Bh3 $11) 21. Qg4 {[%emt 0:00:01][%cal Og2c6]} Qf5 {[%emt 0:01:53]} 22. Qe2 {[%emt 0:00:36]} Nf6 {[%emt 0:01:18]} 23. Bh3 {[%emt 0:00:01]} Qg6 {[%emt 0:00:27]} 24. Bxe6 $2 {[%emt 0:00:09]} (24. Qf3 {was worth a try.}) 24... h6 {[%emt 0:00:11]} 25. Nf7+ {[%emt 0:00:21]} (25. Nf3 Nd7 26. Qe4 Qxe4 27. Rxe4) 25... Kg7 {[%emt 0:00:06]} 26. Qf3 {[%emt 0:00:14] [#]} Rxe6 {[%emt 0:00:27]} 27. Rxe6 {[%emt 0:00:02] Hoping for Ne5.} Qxf7 {[%emt 0:00:04]} 28. Rae1 {[%emt 0:00:01]} Bb7 {[%emt 0:00:32][%cal Ba6b7,Bb7c8,Bc8d7][%mdl 32] ...c5 is the strong threat.} 29. Qf5 {[%emt 0:00:07]} Rd8 {[%emt 0:00:14] aiming for ...Bc8.} 30. Qf4 {[%emt 0:00:26]} Rd5 {[%emt 0:00:12]} 31. g4 {[%emt 0:00:11]} Ng8 {[%emt 0:00:12]} 32. Qg3 {[%emt 0:00:12]} Bc8 {[%emt 0:00:17]} 33. Rxc6 {[%emt 0:00:06]} Bd7 {[%emt 0:00:04]} 34. Rxc4 {[%emt 0:00:05]} Bd6 {[%emt 0:00:03]} 35. Qg2 {[%emt 0:00:07]} Nf6 {[%emt 0:00:12]} 36. f3 {[%emt 0:00:14]} Qg6 {[%emt 0:00:17]} 37. Rcc1 {[%emt 0:00:13]} Rxd4 {[%emt 0:00:04][%cal Rf6g4]} 38. Rcd1 {[%emt 0:00:02]} Bc5 {[%emt 0:00:07][%cal Rd4g4]} 39. Kh1 {[%emt 0:00:05]} Rxd1 {[%emt 0:00:03]} 40. Rxd1 {[%emt 0:00:01]} Bc6 {[%emt 0:00:03][%cal Of6g4] White must now prevent ...Nxg4!} 41. Qg3 {[%emt 0:00:14]} Qf7 {[%emt 0:00:30]} (41... Qc2 $142 42. Rf1 Qe2) 42. Kg2 {[%emt 0:00:09]} Nd7 {[%emt 0:00:07]} 43. g5 {[%emt 0:00:10]} h5 {[%emt 0:00:11]} 44. Kh2 {[%emt 0:00:16]} Qxa2 {[%emt 0:00:06]} 45. Qf4 Qe6 {[%emt 0:00:10] ( -> ...Qe2+)} 46. Kg3 {[%emt 0:00:39]} Qf7 {[%emt 0:00:18]} 47. Qxf7+ {[%emt 0:00:13]} Kxf7 {[%emt 0:00:00]} 48. f4 {[%emt 0:00:00]} Kg6 {[%emt 0:00:08]} 49. Re1 {[%emt 0:00:05]} Nf8 {[%emt 0:00:13]} 50. Rd1 {[%emt 0:00:23]} Ne6 {[%emt 0:00:19]} 51. Re1 {[%emt 0:00:10]} Ng7 {[%emt 0:00:10] Threatens to win with ...Nf5+.} 52. Kh2 {[%emt 0:00:11]} Bd6 {[%emt 0:00:10]} 53. Rf1 {[%emt 0:00:07]} Kf5 {[%emt 0:00:05]} 54. Kh3 {[%emt 0:00:07]} Ne6 {[%emt 0:00:04]} 55. Rd1 {[%emt 0:00:03]} Nxf4+ {[%emt 0:00:04]} 56. Kh2 {[%emt 0:00:01]} Be5 {[%emt 0:00:13]} 57. Kg1 {[%emt 0:00:15]} Ng6 {[%emt 0:00:08]} 58. Rf1+ {[%emt 0:00:06]} Ke6 {[%emt 0:00:08] Strongly threatening ...Bd4+.} 59. Rc1 {[%emt 0:00:15]} Bd5 {[%emt 0:00:09]} 60. Rc8 {[%emt 0:00:21]} Nxh4 {[%emt 0:00:02] Black mates.} 61. Re8+ {[%emt 0:00:01]} Kf5 {[%emt 0:00:04]} 62. Rf8+ {[%emt 0:00:17]} Kxg5 {[%emt 0:00:05]} 63. Kf1 {[%emt 0:00:15]} Nf5 {[%emt 0:00:07]} 64. Re8 {[%emt 0:00:07]} Bxb2 {[%emt 0:00:09]} 65. Rb8 {[%emt 0:00:09]} a4 {[%emt 0:00:09][%cal Ba5a4,Ba4a3][%mdl 32]} 66. Rxb6 {[%emt 0:00:07]} a3 {[%emt 0:00:02] Weighted Error Value: White=0.44/Black=0.19 (very precise)} 0-1

[Event "German Rapid Championship 2022"]
[Site "Goettingen"]
[Date "2022.09.24"]
[Round "3.5"]
[White "Heider, Martin"]
[Black "Fridman, Daniel"]
[Result "0-1"]
[ECO "A06"]
[WhiteElo "2393"]
[BlackElo "2607"]
[Annotator "TA"]
[PlyCount "78"]
[EventDate "2022.09.24"]
[EventType "swiss"]
[EventCountry "GER"]
[SourceTitle "playchess.com"]
[Source "ChessBase"]
[SourceQuality "1"]
[TimeControl "900+10"]

{[%evp 9,78,6,22,13,25,0,13,0,0,0,126,52,52,36,33,38,34,33,38,35,43,38,42,19,21,0,0,-14,-12,-17,-18,-16,-9,-47,33,39,80,-6,-4,-2,-12,-52,0,-26,-24,-20,-8,-13,0,-42,-47,-194,-195,-197,-63,-53,-51,-297,-285,-555,-564,-862,-863,-912,-928,-1729,-1741,-2529,-2610,-29996,-29997]} 1. Nf3 {[%emt 0:00:04]} d5 {[%emt 0:00:01]} 2. b3 {[%emt 0:00:19]} Bg4 {[%emt 0:00:03]} 3. e3 {[%emt 0:00:05]} e5 {[%emt 0:00:07]} 4. h3 {[%emt 0:00:27]} Bxf3 {[%emt 0:00:02]} 5. Qxf3 {[%emt 0:00:02]} Nf6 {[%emt 0:00:02]} 6. Bb2 {[%emt 0:00:15] A06: Réti Opening: 1 Nf3 d5.} Bd6 {[%emt 0:00:03] was the old line (6...Nbd7).} 7. c4 {[%emt 0:00:16]} c6 {[%emt 0:00:37]} 8. cxd5 {[%emt 0:00:31] The position is equal.} cxd5 {[%emt 0:00:29]} 9. Nc3 {[%emt 0:00:15]} Bc7 {[%emt 0:00:48] [#]} (9... e4 $11 {keeps the balance.} 10. Qd1 O-O) 10. Bb5+ {[%emt 0:01:37]} (10. g4 $1 $16) 10... Nc6 $14 {[%emt 0:00:10] [#]} 11. Ba3 $146 {[%emt 0:01:21]} (11. Bxc6+ $5 bxc6 12. Rc1 $11) ({Predecessor:} 11. Qd1 O-O 12. Ne2 Qe7 13. Ng3 Rac8 14. Rc1 Bb6 15. O-O d4 16. Bxc6 bxc6 17. exd4 exd4 {1-0 (30) Beron,R-Casado,F (1614) Villa Maria 2012}) 11... Bd6 {[%emt 0:00:32]} 12. Bxc6+ {[%emt 0:00:36]} bxc6 {[%emt 0:00:02]} 13. Bxd6 {[%emt 0:00:05]} Qxd6 {[%emt 0:00:02]} 14. O-O {[%emt 0:00:06]} O-O {[%emt 0:00:05]} 15. Rac1 {[%emt 0:00:06]} Nd7 {[%emt 0:00:29]} 16. Rc2 {[%emt 0:00:33]} e4 {[%emt 0:00:10]} 17. Qf4 {[%emt 0:02:42]} Ne5 {[%emt 0:01:14]} 18. Ne2 {[%emt 0:01:20]} c5 {[%emt 0:00:45] Inhibits Nd4.} 19. Rfc1 {[%emt 0:00:36]} Qe7 {[%emt 0:00:02]} 20. Qg3 {[%emt 0:01:13]} ({Don't play} 20. Rxc5 Nd3 21. Qc7 Qxc7 22. Rxc7 Nxc1 23. Rxc1 Rac8 $17) 20... Nd3 {[%emt 0:00:02]} 21. Rd1 {[%emt 0:00:13]} f5 {[%emt 0:00:31]} (21... Nb4 $15 22. Rb2 Rfd8) 22. Nf4 {[%emt 0:00:17]} Nb4 {[%emt 0:00:03]} 23. Rb2 {[%emt 0:00:29]} (23. Rcc1 $16) 23... Qe5 $11 {[%emt 0:00:45]} 24. Rdb1 {[%emt 0:00:22]} Rab8 {[%emt 0:00:09]} 25. a3 {[%emt 0:00:29]} (25. d4 $5 cxd4 26. exd4 $11) 25... Nc6 {[%emt 0:00:02]} (25... Nd3 $1 $15 26. Nxd3 Qxg3 27. fxg3 exd3) 26. Rc2 {[%emt 0:00:17]} c4 {[%emt 0:00:02]} 27. b4 {[%emt 0:00:40]} Rb5 {[%emt 0:00:22]} 28. Ne2 {[%emt 0:00:36]} Qe6 {[%emt 0:00:25]} 29. Nc3 {[%emt 0:00:08]} Rb7 {[%emt 0:00:08]} 30. Na4 {[%emt 0:00:12] [#]} (30. Ne2 $15) 30... f4 $1 $19 {[%emt 0:00:21]} 31. Qg4 {[%emt 0:00:18]} Qxg4 {[%emt 0:01:41]} ({Black should play} 31... Qd6 $19 {Threatens to win with ...Ne5.} 32. exf4 Nd4) 32. hxg4 $15 {[%emt 0:00:01]} Ne5 {[%emt 0:00:03]} 33. Nc5 $2 {[%emt 0:00:10]} ({White should try} 33. b5 $15) 33... Rb6 $19 {[%emt 0:00:28] Strongly threatening ...f3.} 34. b5 $2 {[%emt 0:01:54]} (34. exf4 Rxf4 35. Rc3) 34... f3 {[%emt 0:00:11] Hoping for ...fxg2.} 35. a4 {[%emt 0:00:35]} fxg2 {[%emt 0:01:59] White must now prevent ...Rg6.} 36. Kxg2 {[%emt 0:00:39]} Rg6 {[%emt 0:00:19]} 37. Rh1 {[%emt 0:00:31]} Nxg4 {[%emt 0:00:11]} 38. Kf1 {[%emt 0:00:25]} Nxf2 {[%emt 0:00:02]} 39. Rh5 {[%emt 0:00:33]} Nd3+ {[%emt 0:00:05] Weighted Error Value: White=0.87/Black=0.19 (very precise)} 0-1